Workbook

Sheet Лист1
E1: Нужно
B2: Размер | C2: Кол-во | E2: 2216 | F2: 10300 | G2: 5600 | H2: 15000 | I2: 120 | J2: 200 | K2: =+J2+100 -> 300 | L2: 400 | M2: 500 | N2: 600 | O2: 700 | P2: 800
B3: 128 | C3: =SUM(E3:P3) -> 263 | E3: =SubsetSumRng($B$3:$B$22,E2) -> 16 | F3: =SubsetSumRng($B$3:$B$22,F2) -> 77 | G3: =SubsetSumRng($B$3:$B$22,G2) -> 43 | H3: =SubsetSumRng($B$3:$B$22,H2) -> 117 | I3: =SubsetSumRng($B$3:$B$22,I2) -> 0 | J3: =SubsetSumRng($B$3:$B$22,J2) -> 1 | K3: =SubsetSumRng($B$3:$B$22,K2) -> 0 | L3: =SubsetSumRng($B$3:$B$22,L2) -> 2 | M3: =SubsetSumRng($B$3:$B$22,M2) -> 1 | N3: =SubsetSumRng($B$3:$B$22,N2) -> 3 | O3: =SubsetSumRng($B$3:$B$22,O2) -> 2 | P3: =SubsetSumRng($B$3:$B$22,P2) -> 1
B4: 105 | C4: 12 | E4: 0 | F4: 4 | G4: 0 | H4: 0 | I4: 0 | J4: 0 | K4: 0 | L4: 0 | M4: 0 | N4: 0 | O4: 4 | P4: 4
B5: 84 | C5: 15 | E5: 2 | F5: 0 | G5: 0 | H5: 0 | I5: 1 | J5: 0 | K5: 3 | L5: 0 | M5: 4 | N5: 2 | O5: 0 | P5: 3
B6: 63 | C6: 0 | E6: 0 | F6: 0 | G6: 0 | H6: 0 | I6: 0 | J6: 0 | K6: 0 | L6: 0 | M6: 0 | N6: 0 | O6: 0 | P6: 0
B7: 56 | C7: 0 | E7: 0 | F7: 0 | G7: 0 | H7: 0 | I7: 0 | J7: 0 | K7: 0 | L7: 0 | M7: 0 | N7: 0 | O7: 0 | P7: 0
B8: 48 | C8: 7 | E8: 0 | F8: 0 | G8: 2 | H8: 0 | I8: 0 | J8: 0 | K8: 1 | L8: 3 | M8: 0 | N8: 1 | O8: 0 | P8: 0
B9: 42 | C9: 0 | E9: 0 | F9: 0 | G9: 0 | H9: 0 | I9: 0 | J9: 0 | K9: 0 | L9: 0 | M9: 0 | N9: 0 | O9: 0 | P9: 0
B10: 36 | C10: 4 | E10: 0 | F10: 0 | G10: 0 | H10: 0 | I10: 1 | J10: 2 | K10: 0 | L10: 0 | M10: 1 | N10: 0 | O10: 0 | P10: 0
B11: 29 | C11: 0 | E11: 0 | F11: 0 | G11: 0 | H11: 0 | I11: 0 | J11: 0 | K11: 0 | L11: 0 | M11: 0 | N11: 0 | O11: 0 | P11: 0
B12: 24 | C12: 3 | E12: 0 | F12: 1 | G12: 0 | H12: 1 | I12: 0 | J12: 0 | K12: 0 | L12: 0 | M12: 0 | N12: 0 | O12: 1 | P12: 0
C13: 0 | E13: 0 | F13: 0 | G13: 0 | H13: 0 | I13: 0 | J13: 0 | K13: 0 | L13: 0 | M13: 0 | N13: 0 | O13: 0 | P13: 0
C14: 0 | E14: 0 | F14: 0 | G14: 0 | H14: 0 | I14: 0 | J14: 0 | K14: 0 | L14: 0 | M14: 0 | N14: 0 | O14: 0 | P14: 0
C15: 0 | E15: 0 | F15: 0 | G15: 0 | H15: 0 | I15: 0 | J15: 0 | K15: 0 | L15: 0 | M15: 0 | N15: 0 | O15: 0 | P15: 0
C16: 0 | E16: 0 | F16: 0 | G16: 0 | H16: 0 | I16: 0 | J16: 0 | K16: 0 | L16: 0 | M16: 0 | N16: 0 | O16: 0 | P16: 0
C17: 0 | E17: 0 | F17: 0 | G17: 0 | H17: 0 | I17: 0 | J17: 0 | K17: 0 | L17: 0 | M17: 0 | N17: 0 | O17: 0 | P17: 0
C18: 0 | E18: 0 | F18: 0 | G18: 0 | H18: 0 | I18: 0 | J18: 0 | K18: 0 | L18: 0 | M18: 0 | N18: 0 | O18: 0 | P18: 0
C19: 0 | E19: 0 | F19: 0 | G19: 0 | H19: 0 | I19: 0 | J19: 0 | K19: 0 | L19: 0 | M19: 0 | N19: 0 | O19: 0 | P19: 0
C20: 0 | E20: 0 | F20: 0 | G20: 0 | H20: 0 | I20: 0 | J20: 0 | K20: 0 | L20: 0 | M20: 0 | N20: 0 | O20: 0 | P20: 0
C21: 0 | E21: 0 | F21: 0 | G21: 0 | H21: 0 | I21: 0 | J21: 0 | K21: 0 | L21: 0 | M21: 0 | N21: 0 | O21: 0 | P21: 0
C22: 0 | E22: 0 | F22: 0 | G22: 0 | H22: 0 | I22: 0 | J22: 0 | K22: 0 | L22: 0 | M22: 0 | N22: 0 | O22: 0 | P22: 0
B23: Итого | C23: =SUMPRODUCT(C3:C22,$B3:$B22) -> 36736 | E23: =SUMPRODUCT(E3:E22,$B3:$B22) -> 2216 | F23: =SUMPRODUCT(F3:F22,$B3:$B22) -> 10300 | G23: 5600 | H23: 15000 | I23: 120 | J23: =SUMPRODUCT(J3:J22,$B3:$B22) -> 200 | K23: =SUMPRODUCT(K3:K22,$B3:$B22) -> 300 | L23: =SUMPRODUCT(L3:L22,$B3:$B22) -> 400 | M23: =SUMPRODUCT(M3:M22,$B3:$B22) -> 500 | N23: =SUMPRODUCT(N3:N22,$B3:$B22) -> 600 | O23: =SUMPRODUCT(O3:O22,$B3:$B22) -> 700 | P23: =SUMPRODUCT(P3:P22,$B3:$B22) -> 800
